[Event "*** Titled Tuesday Blitz"]
[Site "Chess.com"]
[Date "2020.04.21"]
[Round "6"]
[White "abhijeetgupta1016"]
[Black "Shahinyan_ChessMood"]
[Result "1-0"]
[WhiteElo "2908"]
[BlackElo "2662"]
[TimeControl "180+1"]
[EndTime "11:09:55 PDT"]
[Termination "abhijeetgupta1016 won by resignation"]

1. d4 {[%clk 0:03:00.9]} 1... e6 {[%clk 0:02:57]} 2. c4 {[%clk 0:03:01.8]} 2...
f5 {[%clk 0:02:56]} 3. Nf3 {[%clk 0:02:57.1]} 3... Nf6 {[%clk 0:02:55.4]} 4. e3
{[%clk 0:02:56.6]} 4... d5 {[%clk 0:02:51.9]} 5. Bd3 {[%clk 0:02:54.9]} 5... c6
{[%clk 0:02:51]} 6. b3 {[%clk 0:02:53.4]} 6... Bd6 {[%clk 0:02:50.2]} 7. O-O
{[%clk 0:02:52.5]} 7... Qe7 {[%clk 0:02:49.9]} 8. a4 {[%clk 0:02:52]} 8... a5
{[%clk 0:02:49.7]} 9. Ba3 {[%clk 0:02:51.8]} 9... Bxa3 {[%clk 0:02:48.5]} 10.
Nxa3 {[%clk 0:02:52.7]} 10... O-O {[%clk 0:02:48.3]} 11. Nc2 {[%clk 0:02:52.4]}
11... Na6 {[%clk 0:02:48.6]} 12. Ne5 {[%clk 0:02:52.1]} 12... Nd7 {[%clk
0:02:47.6]} 13. f4 {[%clk 0:02:40.7]} 13... Nxe5 {[%clk 0:02:46]} 14. dxe5
{[%clk 0:02:38.2]} 14... b6 {[%clk 0:02:45.1]} 15. cxd5 {[%clk 0:02:37.3]} 15...
cxd5 {[%clk 0:02:41.2]} 16. Nd4 {[%clk 0:02:37]} 16... Nc5 {[%clk 0:02:36.4]}
17. Rf2 {[%clk 0:02:37.1]} 17... Bd7 {[%clk 0:02:20.6]} 18. Rc1 {[%clk
0:02:34.8]} 18... Rac8 {[%clk 0:02:20.3]} 19. Rfc2 {[%clk 0:02:30.8]} 19... Rc7
{[%clk 0:02:19.3]} 20. Bf1 {[%clk 0:02:22.7]} 20... Rfc8 {[%clk 0:02:19.1]} 21.
Qd2 {[%clk 0:02:12.5]} 21... Ne4 {[%clk 0:01:55.2]} 22. Qd3 {[%clk 0:01:59.2]}
22... Rxc2 {[%clk 0:01:44.7]} 23. Rxc2 {[%clk 0:01:59.3]} 23... Rxc2 {[%clk
0:01:44.4]} 24. Qxc2 {[%clk 0:01:58.3]} 24... Qc5 {[%clk 0:01:44.8]} 25. Bd3
{[%clk 0:01:57.5]} 25... Qxc2 {[%clk 0:01:39]} 26. Bxc2 {[%clk 0:01:57.4]} 26...
Nc5 {[%clk 0:01:39.5]} 27. Kf2 {[%clk 0:01:57.6]} 27... Kf7 {[%clk 0:01:39.7]}
28. Kf3 {[%clk 0:01:53.1]} 28... Bc8 {[%clk 0:01:35.5]} 29. g4 {[%clk
0:01:50.5]} 29... g6 {[%clk 0:01:33.8]} 30. h4 {[%clk 0:01:49.6]} 30... Ba6
{[%clk 0:01:32.4]} 31. h5 {[%clk 0:01:49.7]} 31... Bd3 {[%clk 0:01:31.3]} 32.
Bxd3 {[%clk 0:01:47.5]} 32... Nxd3 {[%clk 0:01:32.2]} 33. h6 {[%clk 0:01:45.9]}
33... Nc5 {[%clk 0:01:22]} 34. g5 {[%clk 0:01:45.7]} 34... Ke7 {[%clk
0:01:15.6]} 35. Ke2 {[%clk 0:01:45.9]} 35... Kd7 {[%clk 0:01:07.3]} 36. Kd2
{[%clk 0:01:45.8]} 36... Na6 {[%clk 0:01:05.9]} 37. Kc3 {[%clk 0:01:43.8]} 37...
Nb4 {[%clk 0:01:02.1]} 38. Nb5 {[%clk 0:01:40.1]} 38... Nc6 {[%clk 0:00:59.5]}
39. Nd6 {[%clk 0:01:36.4]} 39... Kd8 {[%clk 0:00:43.9]} 40. Nb5 {[%clk
0:01:18.4]} 40... Kd7 {[%clk 0:00:43.1]} 41. Na3 {[%clk 0:01:17.9]} 41... Nb4
{[%clk 0:00:39.5]} 42. Nb1 {[%clk 0:01:17.9]} 42... Kc6 {[%clk 0:00:26.6]} 43.
Nd2 {[%clk 0:01:17.4]} 43... Kc5 {[%clk 0:00:25.7]} 44. Nf3 {[%clk 0:01:17.4]}
44... Nc6 {[%clk 0:00:26.3]} 45. Ne1 {[%clk 0:01:15]} 45... Nb4 {[%clk
0:00:23.9]} 46. Ng2 {[%clk 0:01:15.3]} 46... Nc6 {[%clk 0:00:22.6]} 47. Ne1
{[%clk 0:01:10.6]} 47... Nb4 {[%clk 0:00:22.4]} 48. Nf3 {[%clk 0:01:11.2]} 48...
Nc6 {[%clk 0:00:22.4]} 49. Nd2 {[%clk 0:01:10.7]} 49... Nb4 {[%clk 0:00:18]} 50.
Nb1 {[%clk 0:01:10.9]} 50... Nc6 {[%clk 0:00:18]} 51. Na3 {[%clk 0:01:11.5]}
51... Ne7 {[%clk 0:00:17.3]} 52. Nb5 {[%clk 0:01:11.4]} 52... Kc6 {[%clk
0:00:17.7]} 53. b4 {[%clk 0:01:08.5]} 53... axb4+ {[%clk 0:00:15]} 54. Kxb4
{[%clk 0:01:08.5]} 54... Kd7 {[%clk 0:00:14.3]} 55. Nd6 {[%clk 0:00:46.4]} 55...
d4 {[%clk 0:00:13.7]} 56. e4 {[%clk 0:00:40]} 56... fxe4 {[%clk 0:00:13.2]} 57.
Nxe4 {[%clk 0:00:38.8]} 57... Nd5+ {[%clk 0:00:13.5]} 58. Kc4 {[%clk 0:00:39]}
58... Nxf4 {[%clk 0:00:13.4]} 59. Nf6+ {[%clk 0:00:39.1]} 59... Ke7 {[%clk
0:00:13.9]} 60. Kxd4 {[%clk 0:00:38.2]} 60... Nh3 {[%clk 0:00:09]} 61. Nxh7
{[%clk 0:00:37.9]} 61... Kf7 {[%clk 0:00:09.4]} 62. Kc4 {[%clk 0:00:37.9]} 62...
Nf2 {[%clk 0:00:06.9]} 63. Nf6 {[%clk 0:00:37.2]} 63... Nd1 {[%clk 0:00:03.4]}
64. Ne4 {[%clk 0:00:33]} 64... Ne3+ {[%clk 0:00:03.1]} 65. Kb5 {[%clk
0:00:32.7]} 65... Ng4 {[%clk 0:00:03.8]} 66. Kxb6 {[%clk 0:00:31.7]} 66... Nxe5
{[%clk 0:00:03.6]} 67. a5 {[%clk 0:00:31.6]} 67... Nc4+ {[%clk 0:00:04.2]} 1-0

[Event "*** Titled Tuesday Blitz"]
[Site "Chess.com"]
[Date "2020.04.21"]
[Round "6"]
[White "fabianvivasz"]
[Black "GianmarcoVaR"]
[Result "1-0"]
[WhiteElo "2371"]
[BlackElo "2550"]
[TimeControl "180+1"]
[EndTime "11:09:55 PDT"]
[Termination "fabianvivasz won on time"]

1. e4 {[%clk 0:03:00.9]} 1... c6 {[%clk 0:02:51.2]} 2. d4 {[%clk 0:02:59.9]}
2... d5 {[%clk 0:02:51.7]} 3. exd5 {[%clk 0:03:00.8]} 3... cxd5 {[%clk
0:02:51.6]} 4. c4 {[%clk 0:03:01.4]} 4... Nf6 {[%clk 0:02:51.9]} 5. Nc3 {[%clk
0:03:01.4]} 5... e6 {[%clk 0:02:51.8]} 6. Nf3 {[%clk 0:03:01.5]} 6... Bb4 {[%clk
0:02:51.5]} 7. cxd5 {[%clk 0:02:58.4]} 7... Nxd5 {[%clk 0:02:51.8]} 8. Qc2
{[%clk 0:02:58.1]} 8... Nc6 {[%clk 0:02:51]} 9. Bd3 {[%clk 0:02:58.1]} 9... Nf6
{[%clk 0:02:47.7]} 10. O-O {[%clk 0:02:44.7]} 10... Be7 {[%clk 0:02:38.7]} 11.
Rd1 {[%clk 0:02:36.7]} 11... Nb4 {[%clk 0:02:37.2]} 12. Bb5+ {[%clk 0:02:34]}
12... Bd7 {[%clk 0:02:37]} 13. Bxd7+ {[%clk 0:02:18.4]} 13... Qxd7 {[%clk
0:02:32.9]} 14. Qb3 {[%clk 0:02:16.8]} 14... O-O {[%clk 0:02:09.1]} 15. Ne5
{[%clk 0:02:09.7]} 15... Qc8 {[%clk 0:01:37.5]} 16. Bg5 {[%clk 0:02:03.1]} 16...
h6 {[%clk 0:01:17.3]} 17. Bxf6 {[%clk 0:01:49]} 17... gxf6 {[%clk 0:01:16.9]}
18. Nd3 {[%clk 0:01:32.3]} 18... Nxd3 {[%clk 0:01:04.4]} 19. Rxd3 {[%clk
0:01:33.2]} 19... f5 {[%clk 0:00:51.8]} 20. Rh3 {[%clk 0:01:23.7]} 20... Bf6
{[%clk 0:00:43.8]} 21. Rxh6 {[%clk 0:01:07.4]} 21... Bxd4 {[%clk 0:00:41.9]} 22.
Ne2 {[%clk 0:01:01.3]} 22... Bg7 {[%clk 0:00:40.7]} 23. Rh3 {[%clk 0:01:00]}
23... Qc7 {[%clk 0:00:37.3]} 24. Rc1 {[%clk 0:00:44.5]} 24... Qe5 {[%clk
0:00:36]} 25. Re3 {[%clk 0:00:32.7]} 25... Qxb2 {[%clk 0:00:31.9]} 26. Qxb2
{[%clk 0:00:32.2]} 26... Bxb2 {[%clk 0:00:32.4]} 27. Rb1 {[%clk 0:00:32.8]}
27... Rfd8 {[%clk 0:00:21.7]} 28. g4 {[%clk 0:00:18.5]} 28... f4 {[%clk
0:00:06.6]} 29. Nxf4 {[%clk 0:00:14.2]} 29... Bd4 {[%clk 0:00:05.9]} 30. Rf3
{[%clk 0:00:11.3]} 30... Rab8 {[%clk 0:00:05.2]} 31. Kg2 {[%clk 0:00:10.3]}
31... b5 {[%clk 0:00:05.7]} 32. Ne2 {[%clk 0:00:10.3]} 32... Be5 {[%clk
0:00:05.7]} 33. Rfb3 {[%clk 0:00:09.4]} 33... a6 {[%clk 0:00:05.6]} 34. f4
{[%clk 0:00:08.6]} 34... Rd2 {[%clk 0:00:05.2]} 35. Kf3 {[%clk 0:00:08.2]} 35...
Bd6 {[%clk 0:00:05.7]} 36. a4 {[%clk 0:00:07.9]} 36... b4 {[%clk 0:00:06.2]} 37.
a5 {[%clk 0:00:06.9]} 37... Ra2 {[%clk 0:00:06.3]} 38. h4 {[%clk 0:00:06.3]}
38... Rxa5 {[%clk 0:00:05.5]} 39. h5 {[%clk 0:00:05.1]} 39... Ra2 {[%clk
0:00:04.8]} 40. Ng3 {[%clk 0:00:03.8]} 40... a5 {[%clk 0:00:05.1]} 41. Ne4
{[%clk 0:00:03.9]} 41... Be7 {[%clk 0:00:05.7]} 42. f5 {[%clk 0:00:03.6]} 42...
a4 {[%clk 0:00:06]} 43. Rd3 {[%clk 0:00:01.8]} 43... Rc2 {[%clk 0:00:05.8]} 44.
f6 {[%clk 0:00:01.8]} 44... Bf8 {[%clk 0:00:05.8]} 45. g5 {[%clk 0:00:02]} 45...
a3 {[%clk 0:00:06.1]} 46. g6 {[%clk 0:00:01.9]} 46... a2 {[%clk 0:00:06.6]} 47.
Rg1 {[%clk 0:00:01.1]} 47... b3 {[%clk 0:00:05.8]} 48. Nd6 {[%clk 0:00:01.2]}
48... Bxd6 {[%clk 0:00:05.4]} 49. Rxd6 {[%clk 0:00:01.9]} 49... Rc3+ {[%clk
0:00:05]} 50. Kf4 {[%clk 0:00:01.5]} 50... Rb4+ {[%clk 0:00:05.3]} 51. Kg5
{[%clk 0:00:02.4]} 51... Rb8 {[%clk 0:00:02.3]} 52. Kh6 {[%clk 0:00:02.6]} 52...
b2 {[%clk 0:00:02]} 53. Rd7 {[%clk 0:00:02.9]} 53... b1=Q {[%clk 0:00:01.2]} 54.
gxf7+ {[%clk 0:00:03.2]} 54... Kh8 {[%clk 0:00:01.1]} 55. Rxb1 {[%clk
0:00:01.1]} 1-0

[Event "*** Titled Tuesday Blitz"]
[Site "Chess.com"]
[Date "2020.04.21"]
[Round "6"]
[White "raviteja81293"]
[Black "NTDVAN12"]
[Result "1-0"]
[WhiteElo "2787"]
[BlackElo "2630"]
[TimeControl "180+1"]
[EndTime "11:09:56 PDT"]
[Termination "raviteja81293 won by resignation"]

1. Nf3 {[%clk 0:02:59.9]} 1... d5 {[%clk 0:02:59.9]} 2. d4 {[%clk 0:03:00.4]}
2... Nf6 {[%clk 0:03:00]} 3. c4 {[%clk 0:03:00.7]} 3... e6 {[%clk 0:03:00.5]} 4.
e3 {[%clk 0:03:01]} 4... Be7 {[%clk 0:02:59.3]} 5. Nc3 {[%clk 0:03:00.5]} 5...
O-O {[%clk 0:02:59.6]} 6. b3 {[%clk 0:03:01]} 6... c5 {[%clk 0:02:59.2]} 7. Bb2
{[%clk 0:02:59.8]} 7... cxd4 {[%clk 0:02:55.5]} 8. Nxd4 {[%clk 0:02:57.9]} 8...
dxc4 {[%clk 0:02:27.6]} 9. Bxc4 {[%clk 0:02:58.8]} 9... a6 {[%clk 0:02:27.6]}
10. Be2 {[%clk 0:02:54.1]} 10... e5 {[%clk 0:02:26.7]} 11. Nf3 {[%clk
0:02:50.1]} 11... Nc6 {[%clk 0:02:27]} 12. O-O {[%clk 0:02:50.2]} 12... Bf5
{[%clk 0:02:22.5]} 13. Rc1 {[%clk 0:02:37.5]} 13... Rc8 {[%clk 0:02:00.8]} 14.
Nh4 {[%clk 0:02:25.1]} 14... Be6 {[%clk 0:01:58.8]} 15. Qc2 {[%clk 0:02:23]}
15... g6 {[%clk 0:01:18.7]} 16. Rfd1 {[%clk 0:02:18.4]} 16... Qc7 {[%clk
0:01:19.3]} 17. Nf3 {[%clk 0:02:17.9]} 17... Rfd8 {[%clk 0:01:19]} 18. Rxd8+
{[%clk 0:02:09.7]} 18... Rxd8 {[%clk 0:01:19.9]} 19. Rd1 {[%clk 0:02:09.9]}
19... Kg7 {[%clk 0:01:17.8]} 20. h3 {[%clk 0:02:08.9]} 20... Kg8 {[%clk
0:01:16.3]} 21. Qc1 {[%clk 0:01:53]} 21... e4 {[%clk 0:00:57]} 22. Ng5 {[%clk
0:01:34.9]} 22... Bf5 {[%clk 0:00:48.4]} 23. g4 {[%clk 0:01:35]} 23... Rxd1+
{[%clk 0:00:21.4]} 24. Qxd1 {[%clk 0:01:27.9]} 24... h6 {[%clk 0:00:17.4]} 25.
gxf5 {[%clk 0:01:03.4]} 25... hxg5 {[%clk 0:00:17.6]} 26. fxg6 {[%clk
0:01:03.9]} 26... fxg6 {[%clk 0:00:18.5]} 27. Bc4+ {[%clk 0:01:04.1]} 27... Kh7
{[%clk 0:00:19]} 28. Nd5 {[%clk 0:00:58.9]} 28... Qd8 {[%clk 0:00:18.4]} 29.
Nxf6+ {[%clk 0:00:42]} 29... Bxf6 {[%clk 0:00:19.3]} 30. Qxd8 {[%clk 0:00:40.2]}
30... Bxd8 {[%clk 0:00:20.2]} 31. Bd5 {[%clk 0:00:40.4]} 31... Nb4 {[%clk
0:00:20.7]} 32. Bxb7 {[%clk 0:00:36.8]} 32... Nxa2 {[%clk 0:00:18.7]} 33. Bxa6
{[%clk 0:00:36.9]} 33... Nb4 {[%clk 0:00:15.8]} 34. Bb7 {[%clk 0:00:37.3]} 34...
Nd3 {[%clk 0:00:16.7]} 35. Bd4 {[%clk 0:00:37]} 35... Nc1 {[%clk 0:00:15.4]} 36.
b4 {[%clk 0:00:14.1]} 36... Ne2+ {[%clk 0:00:15.3]} 37. Kf1 {[%clk 0:00:14.7]}
37... Nxd4 {[%clk 0:00:16.2]} 38. exd4 {[%clk 0:00:14.9]} 38... Kg7 {[%clk
0:00:17.1]} 39. Bxe4 {[%clk 0:00:14.8]} 39... Bb6 {[%clk 0:00:17.5]} 40. d5
{[%clk 0:00:14.8]} 40... Kf6 {[%clk 0:00:18]} 41. f3 {[%clk 0:00:15]} 41... Ke5
{[%clk 0:00:17.6]} 42. Ke2 {[%clk 0:00:15.6]} 42... Kd6 {[%clk 0:00:15.3]} 43.
Kd3 {[%clk 0:00:15.4]} 43... Bg1 {[%clk 0:00:15.1]} 44. Kc4 {[%clk 0:00:15.4]}
44... Bf2 {[%clk 0:00:15.5]} 45. Bxg6 {[%clk 0:00:15.7]} 45... Bg1 {[%clk
0:00:14.9]} 46. Be8 {[%clk 0:00:16.1]} 46... Bf2 {[%clk 0:00:14.7]} 47. b5
{[%clk 0:00:16.4]} 47... Bg1 {[%clk 0:00:13.8]} 48. Bc6 {[%clk 0:00:17]} 48...
Bf2 {[%clk 0:00:14.1]} 49. Kd3 {[%clk 0:00:17.6]} 49... Bg1 {[%clk 0:00:14.2]}
50. Ke4 {[%clk 0:00:18.2]} 50... Bb6 {[%clk 0:00:13.8]} 51. Kf5 {[%clk
0:00:18.8]} 51... Be3 {[%clk 0:00:14]} 52. Kg4 {[%clk 0:00:18.4]} 52... Ke5
{[%clk 0:00:13.3]} 53. h4 {[%clk 0:00:17.2]} 53... gxh4 {[%clk 0:00:14.2]} 54.
Kxh4 {[%clk 0:00:18]} 54... Bc5 {[%clk 0:00:11.7]} 55. Kg5 {[%clk 0:00:18]}
55... Be3+ {[%clk 0:00:11.6]} 56. Kg4 {[%clk 0:00:18.8]} 56... Bc5 {[%clk
0:00:12.1]} 57. f4+ {[%clk 0:00:19.4]} 57... Kf6 {[%clk 0:00:12.6]} 58. f5
{[%clk 0:00:19.6]} 58... Kf7 {[%clk 0:00:08.5]} 59. Kg5 {[%clk 0:00:19.2]} 59...
Kf8 {[%clk 0:00:08.2]} 60. Kf6 {[%clk 0:00:19.6]} 1-0

[Event "*** Titled Tuesday Blitz"]
[Site "Chess.com"]
[Date "2020.04.21"]
[Round "6"]
[White "narutosmith"]
[Black "Oligan22"]
[Result "0-1"]
[WhiteElo "2259"]
[BlackElo "2428"]
[TimeControl "180+1"]
[EndTime "11:09:57 PDT"]
[Termination "Oligan22 won by resignation"]

1. c4 {[%clk 0:03:00.9]} 1... c5 {[%clk 0:02:58.3]} 2. Nc3 {[%clk 0:03:01.1]}
2... e6 {[%clk 0:02:58.8]} 3. Nf3 {[%clk 0:02:57.8]} 3... b6 {[%clk 0:02:59.2]}
4. g3 {[%clk 0:02:56.6]} 4... Bb7 {[%clk 0:02:59.5]} 5. Bg2 {[%clk 0:02:57.2]}
5... Nf6 {[%clk 0:03:00.1]} 6. O-O {[%clk 0:02:57.5]} 6... Be7 {[%clk 0:02:59]}
7. d4 {[%clk 0:02:57.4]} 7... cxd4 {[%clk 0:02:58.4]} 8. Qxd4 {[%clk 0:02:58.3]}
8... Nc6 {[%clk 0:02:44.2]} 9. Qd2 {[%clk 0:02:55.3]} 9... a6 {[%clk 0:02:38.7]}
10. b3 {[%clk 0:02:55.2]} 10... Qc7 {[%clk 0:02:38.1]} 11. Bb2 {[%clk
0:02:55.5]} 11... Rd8 {[%clk 0:02:38]} 12. Rac1 {[%clk 0:02:55.4]} 12... O-O
{[%clk 0:02:36.2]} 13. Rfd1 {[%clk 0:02:49]} 13... Qb8 {[%clk 0:02:33.9]} 14. e4
{[%clk 0:02:43.1]} 14... Bb4 {[%clk 0:02:16.4]} 15. Qe2 {[%clk 0:02:42.3]} 15...
Ng4 {[%clk 0:01:57]} 16. h3 {[%clk 0:02:32.8]} 16... Nge5 {[%clk 0:01:56.9]} 17.
Nxe5 {[%clk 0:02:26.4]} 17... Nxe5 {[%clk 0:01:57.8]} 18. a3 {[%clk 0:02:24.4]}
18... Bc5 {[%clk 0:01:56]} 19. b4 {[%clk 0:02:17.8]} 19... Be7 {[%clk 0:01:56]}
20. f4 {[%clk 0:02:10.6]} 20... Ng6 {[%clk 0:01:54.7]} 21. Na4 {[%clk
0:02:01.2]} 21... Bc6 {[%clk 0:01:52.8]} 22. b5 {[%clk 0:01:56.2]} 22... Ba8
{[%clk 0:01:40.3]} 23. bxa6 {[%clk 0:01:51.8]} 23... Qa7 {[%clk 0:01:37]} 24. h4
{[%clk 0:01:11.5]} 24... Bc6 {[%clk 0:01:17.2]} 25. Nc3 {[%clk 0:01:07]} 25...
Bc5+ {[%clk 0:01:17.5]} 26. Kh2 {[%clk 0:01:05.3]} 26... h6 {[%clk 0:01:12.2]}
27. h5 {[%clk 0:01:04.3]} 27... Ne7 {[%clk 0:01:12.2]} 28. Nb5 {[%clk
0:00:58.5]} 28... Qxa6 {[%clk 0:01:11.1]} 29. Qg4 {[%clk 0:00:51.1]} 29... f6
{[%clk 0:01:11.4]} 30. Nd4 {[%clk 0:00:32.4]} 30... e5 {[%clk 0:00:43.3]} 31.
Nf5 {[%clk 0:00:27.9]} 31... Nxf5 {[%clk 0:00:43.2]} 32. exf5 {[%clk 0:00:26]}
32... Bxg2 {[%clk 0:00:40]} 33. Kxg2 {[%clk 0:00:26.2]} 33... d6 {[%clk
0:00:32.3]} 34. fxe5 {[%clk 0:00:21.9]} 34... dxe5 {[%clk 0:00:29.8]} 35. Rxd8
{[%clk 0:00:16.8]} 35... Rxd8 {[%clk 0:00:30.7]} 36. Rd1 {[%clk 0:00:17.3]}
36... Rxd1 {[%clk 0:00:25.8]} 37. Qxd1 {[%clk 0:00:18.2]} 37... Qxc4 {[%clk
0:00:26.4]} 38. Qd2 {[%clk 0:00:09.8]} 38... Qe4+ {[%clk 0:00:25.2]} 39. Kh2
{[%clk 0:00:09]} 39... Qxf5 {[%clk 0:00:23.8]} 40. a4 {[%clk 0:00:09.1]} 40...
Qxh5+ {[%clk 0:00:21.2]} 41. Kg2 {[%clk 0:00:10]} 41... Qg4 {[%clk 0:00:20.6]}
42. Qd5+ {[%clk 0:00:09.6]} 42... Kh7 {[%clk 0:00:20]} 43. Qd3+ {[%clk
0:00:09.5]} 43... Qg6 {[%clk 0:00:19.3]} 44. Qc4 {[%clk 0:00:07.8]} 44... Qf5
{[%clk 0:00:16.6]} 45. Qe2 {[%clk 0:00:06.1]} 45... e4 {[%clk 0:00:16]} 46. a5
{[%clk 0:00:05.6]} 46... bxa5 {[%clk 0:00:15.9]} 47. Bc1 {[%clk 0:00:05.1]}
47... a4 {[%clk 0:00:15.8]} 48. Bd2 {[%clk 0:00:03.7]} 48... a3 {[%clk
0:00:15.8]} 49. Bc3 {[%clk 0:00:03.6]} 49... e3 {[%clk 0:00:14.8]} 50. Qf3
{[%clk 0:00:02.9]} 50... Qxf3+ {[%clk 0:00:14.7]} 51. Kxf3 {[%clk 0:00:03]}
51... Kg6 {[%clk 0:00:14.4]} 52. Ke2 {[%clk 0:00:03.6]} 52... Kf5 {[%clk
0:00:14.7]} 53. Kf3 {[%clk 0:00:04.5]} 53... Ke6 {[%clk 0:00:14.3]} 54. g4
{[%clk 0:00:04.2]} 54... g6 {[%clk 0:00:14.4]} 55. Ke2 {[%clk 0:00:03.9]} 55...
h5 {[%clk 0:00:14.9]} 56. Kf3 {[%clk 0:00:04.5]} 56... hxg4+ {[%clk 0:00:14.8]}
57. Kxg4 {[%clk 0:00:05.4]} 57... f5+ {[%clk 0:00:14.9]} 58. Kf3 {[%clk
0:00:05.6]} 58... g5 {[%clk 0:00:14.9]} 59. Ke2 {[%clk 0:00:05.7]} 59... f4
{[%clk 0:00:15.5]} 60. Kf3 {[%clk 0:00:06.6]} 60... Kf5 {[%clk 0:00:16.2]} 61.
Ke2 {[%clk 0:00:06.6]} 61... g4 {[%clk 0:00:17.1]} 62. Kf1 {[%clk 0:00:06.9]}
62... f3 {[%clk 0:00:17.4]} 63. Ke1 {[%clk 0:00:04.3]} 63... e2 {[%clk
0:00:17.9]} 64. Kd2 {[%clk 0:00:03.4]} 64... Bf2 {[%clk 0:00:18]} 65. Bb4 {[%clk
0:00:01.4]} 65... e1=Q+ {[%clk 0:00:17.2]} 0-1

[Event "*** Titled Tuesday Blitz"]
[Site "Chess.com"]
[Date "2020.04.21"]
[Round "6"]
[White "Jumbo"]
[Black "Hikaru"]
[Result "0-1"]
[WhiteElo "2834"]
[BlackElo "3229"]
[TimeControl "180+1"]
[EndTime "11:09:58 PDT"]
[Termination "Hikaru won by resignation"]

1. d4 {[%clk 0:03:00.9]} 1... g6 {[%clk 0:02:56.4]} 2. c4 {[%clk 0:02:59.7]}
2... Bg7 {[%clk 0:02:56.3]} 3. Nc3 {[%clk 0:02:56.6]} 3... d6 {[%clk 0:02:55.5]}
4. h4 {[%clk 0:02:55]} 4... Nc6 {[%clk 0:02:51]} 5. d5 {[%clk 0:02:52.2]} 5...
Na5 {[%clk 0:02:51.3]} 6. e4 {[%clk 0:02:47.5]} 6... h5 {[%clk 0:02:35.8]} 7.
Nf3 {[%clk 0:02:34.7]} 7... c5 {[%clk 0:02:32.6]} 8. Ng5 {[%clk 0:02:31.3]} 8...
Nh6 {[%clk 0:02:23.8]} 9. Be2 {[%clk 0:02:13.3]} 9... Bd7 {[%clk 0:02:18.9]} 10.
Bd2 {[%clk 0:02:06.1]} 10... a6 {[%clk 0:02:18.9]} 11. Qc2 {[%clk 0:01:58.1]}
11... Rb8 {[%clk 0:02:16]} 12. a4 {[%clk 0:01:34.4]} 12... Qb6 {[%clk
0:02:14.5]} 13. Ra3 {[%clk 0:01:34.5]} 13... Ng4 {[%clk 0:02:07.4]} 14. O-O
{[%clk 0:01:32.7]} 14... Ne5 {[%clk 0:02:05.9]} 15. Nd1 {[%clk 0:01:29.8]} 15...
Qc7 {[%clk 0:02:06.1]} 16. Ne3 {[%clk 0:01:21.8]} 16... b6 {[%clk 0:01:52.9]}
17. g3 {[%clk 0:01:13.6]} 17... Qc8 {[%clk 0:01:43.1]} 18. f4 {[%clk 0:01:07]}
18... Ng4 {[%clk 0:01:42.5]} 19. Bxg4 {[%clk 0:00:59.9]} 19... Bxg4 {[%clk
0:01:26.4]} 20. f5 {[%clk 0:01:00]} 20... Bd4 {[%clk 0:01:20.1]} 21. Kg2 {[%clk
0:00:52.2]} 21... Bxe3 {[%clk 0:01:10.6]} 22. Bxe3 {[%clk 0:00:51.8]} 22... gxf5
{[%clk 0:01:03.4]} 23. exf5 {[%clk 0:00:51.5]} 23... f6 {[%clk 0:01:04]} 24. Ne6
{[%clk 0:00:51.1]} 24... Kf7 {[%clk 0:01:03.6]} 25. Bd2 {[%clk 0:00:47.5]} 25...
Nb7 {[%clk 0:01:02.1]} 26. Re3 {[%clk 0:00:45.8]} 26... Nd8 {[%clk 0:01:02.4]}
27. Bc3 {[%clk 0:00:37]} 27... Rb7 {[%clk 0:00:53.8]} 28. Qe4 {[%clk 0:00:30.5]}
28... Qd7 {[%clk 0:00:19.9]} 29. b3 {[%clk 0:00:24.4]} 29... b5 {[%clk
0:00:19.8]} 30. axb5 {[%clk 0:00:18.3]} 30... axb5 {[%clk 0:00:20.7]} 31. Rf4
{[%clk 0:00:17.1]} 31... Rg8 {[%clk 0:00:18.4]} 32. Qc2 {[%clk 0:00:08.1]} 32...
bxc4 {[%clk 0:00:18.6]} 33. bxc4 {[%clk 0:00:09]} 33... Ra7 {[%clk 0:00:18]} 34.
Rf1 {[%clk 0:00:06.5]} 34... Qa4 {[%clk 0:00:17.7]} 35. Qxa4 {[%clk 0:00:05.5]}
35... Rxa4 {[%clk 0:00:18.6]} 36. Rf4 {[%clk 0:00:05.2]} 36... Nxe6 {[%clk
0:00:17.6]} 37. fxe6+ {[%clk 0:00:04.7]} 37... Kg6 {[%clk 0:00:17]} 38. Kf2
{[%clk 0:00:03.5]} 38... Ra2+ {[%clk 0:00:15.9]} 39. Kf1 {[%clk 0:00:03]} 39...
Rb8 {[%clk 0:00:16]} 40. Be1 {[%clk 0:00:03.5]} 40... Rb1 {[%clk 0:00:13.9]} 41.
Rf2 {[%clk 0:00:02.9]} 41... Raa1 {[%clk 0:00:13.9]} 42. Rd2 {[%clk 0:00:02.4]}
42... Rc1 {[%clk 0:00:12.9]} 43. Re4 {[%clk 0:00:02.8]} 43... f5 {[%clk
0:00:12.2]} 44. Re3 {[%clk 0:00:02.8]} 44... Rxc4 {[%clk 0:00:12.3]} 45. Kg2
{[%clk 0:00:03.2]} 45... f4 {[%clk 0:00:12.8]} 46. gxf4 {[%clk 0:00:03.4]} 46...
Bf5 {[%clk 0:00:11.9]} 47. Bg3 {[%clk 0:00:03.5]} 47... Be4+ {[%clk 0:00:12.4]}
48. Kf2 {[%clk 0:00:04]} 48... Kf5 {[%clk 0:00:12.9]} 49. Rde2 {[%clk
0:00:03.9]} 49... Rac1 {[%clk 0:00:09.9]} 50. Rd2 {[%clk 0:00:03.9]} 50... R1c2
{[%clk 0:00:10]} 51. Rxc2 {[%clk 0:00:04]} 51... Rxc2+ {[%clk 0:00:10.9]} 52.
Ke1 {[%clk 0:00:04.3]} 52... Bxd5 {[%clk 0:00:11.1]} 53. Ra3 {[%clk 0:00:04.8]}
53... Kxe6 {[%clk 0:00:10.5]} 54. Re3+ {[%clk 0:00:04.9]} 54... Kf6 {[%clk
0:00:10.9]} 55. f5 {[%clk 0:00:05.2]} 55... Rc4 {[%clk 0:00:11.5]} 56. Bf2
{[%clk 0:00:04.7]} 56... Re4 {[%clk 0:00:11.9]} 57. Rxe4 {[%clk 0:00:04.6]}
57... Bxe4 {[%clk 0:00:12.8]} 58. Be3 {[%clk 0:00:05.2]} 58... Kxf5 {[%clk
0:00:13.4]} 59. Bg5 {[%clk 0:00:06.1]} 59... e5 {[%clk 0:00:14]} 60. Be7 {[%clk
0:00:06.5]} 60... Ke6 {[%clk 0:00:14.2]} 61. Bf8 {[%clk 0:00:06.8]} 61... c4
{[%clk 0:00:14.8]} 62. Kd2 {[%clk 0:00:07.4]} 62... d5 {[%clk 0:00:15.7]} 63.
Bc5 {[%clk 0:00:06.6]} 63... Bd3 {[%clk 0:00:16.6]} 0-1